fUST/lending_fUST_20241019
["ID","MTS","AMOUNT","RATE_DAILY","PERIOD"]
[340495127,1729336233171,-151.0,0.00013561,2]
[340495128,1729336233181,-151.0,0.00013561,2]
[340495129,1729336233192,-151.0,0.00013561,2]
[340495130,1729336233203,-151.0,0.00013561,2]
[340495131,1729336233213,-249.790345,0.00013561,2]
[340495132,1729336233223,-249.790345,0.00013561,2]
[340495133,1729336233233,-249.790345,0.00013561,2]
[340495134,1729336233243,-151.0,0.00013561,2]
[340495135,1729336233253,-249.790345,0.00013561,2]
[340495136,1729336233264,-151.0,0.00013561,2]
[340495137,1729336233274,-151.0,0.00013561,2]
[340495138,1729336233283,-151.0,0.00013561,2]
[340495139,1729336233293,-249.790345,0.00013561,2]
[340495140,1729336233305,-249.790345,0.00013561,2]
[340495141,1729336233314,-249.790345,0.00013561,2]
[340495142,1729336233324,-249.790345,0.00013561,2]
[340495143,1729336233336,-405.243686,0.00013561,2]
[340495144,1729336233347,-405.243686,0.00013561,2]
[340495145,1729336233357,-281.27360529,0.00013561,2]
[340495156,1729336238304,-234.73417,0.00012,2]
[340495157,1729336238315,-91.35039874,0.00012,2]
[340495172,1729336240120,-96.44327926,0.00012,2]
[340495173,1729336240130,-234.73417,0.00012,2]
[340495174,1729336240139,-234.73417,0.00013073,2]
[340495175,1729336240149,-187.793678,0.00013073,2]
[340495176,1729336240159,-234.73417,0.00013073,2]
[340495177,1729336240168,-187.793678,0.00013551,2]
[340495178,1729336240177,-187.793678,0.00013551,2]
[340495179,1729336240186,-234.73417,0.00013551,2]
[340495180,1729336240196,-234.73417,0.00013551,2]
[340495181,1729336240206,-187.793678,0.00013551,2]
[340495182,1729336240215,-187.793678,0.00013551,2]
[340495183,1729336240226,-234.73417,0.00013551,2]
[340495184,1729336240236,-234.73417,0.00013551,2]
[340495185,1729336240245,-123.97008071,0.00013561,2]
[340495186,1729336240255,-405.243686,0.00013561,2]
[340495187,1729336240264,-405.243686,0.00013561,2]
[340495188,1729336240274,-405.243686,0.00013561,2]
[340495189,1729336240283,-405.243686,0.00013561,2]
[340495190,1729336240292,-405.243686,0.00013561,2]
[340495191,1729336240302,-151.0,0.00013561,2]
[340495192,1729336240311,-151.0,0.00013561,2]
[340495193,1729336240320,-151.0,0.00013561,2]
[340495194,1729336240330,-151.0,0.00013561,2]
[340495195,1729336240339,-151.0,0.00013561,2]
[340495196,1729336240349,-217.349886,0.00013561,2]
[340495197,1729336240358,-934.670431,0.00013561,2]
[340495198,1729336240367,-217.349886,0.00013561,2]
[340495199,1729336240376,-934.670431,0.00013561,2]
[340495200,1729336240386,-934.670431,0.00013561,2]
[340495201,1729336240395,-217.349886,0.00013561,2]
[340495202,1729336240404,-934.670431,0.00013561,2]
[340495203,1729336240414,-217.349886,0.00013561,2]
[340495204,1729336240422,-217.349886,0.00013561,2]
[340495205,1729336240431,-217.349886,0.00013561,2]
[340495206,1729336240441,-934.670431,0.00013561,2]
[340495207,1729336240450,-217.349886,0.00013561,2]
[340495208,1729336240459,-217.349886,0.00013561,2]
[340495209,1729336240469,-934.670431,0.00013561,2]
[340495210,1729336240480,-217.349886,0.00013561,2]
[340495211,1729336240489,-217.349886,0.00013561,2]
[340495212,1729336240498,-934.670431,0.00013561,2]
[340495213,1729336240508,-934.670431,0.00013561,2]
[340495214,1729336240517,-695.719869,0.00013561,2]
[340495215,1729336240526,-695.719869,0.00013561,2]
[340495216,1729336240535,-695.719869,0.00013561,2]
[340495217,1729336240545,-695.719869,0.00013561,2]
[340495218,1729336240554,-695.719869,0.00013561,2]
[340495219,1729336240563,-695.719869,0.00013561,2]
[340495220,1729336240573,-695.719869,0.00013561,2]
[340495221,1729336240582,-695.719869,0.00013561,2]
[340495222,1729336240591,-151.0,0.00013561,2]
[340495223,1729336240600,-151.0,0.00013561,2]
[340495224,1729336240609,-151.0,0.00013561,2]
[340495225,1729336240619,-171.935626,0.00013561,2]
[340495226,1729336240627,-171.935626,0.00013561,2]
[340495227,1729336240637,-171.935626,0.00013561,2]
[340495228,1729336240646,-151.0,0.00013561,2]
[340495229,1729336240655,-153.256201,0.00013561,2]
[340495230,1729336240664,-171.935626,0.00013561,2]
[340495231,1729336240675,-171.935626,0.00013561,2]
[340495232,1729336240684,-171.935626,0.00013561,2]
[340495233,1729336240693,-151.0,0.00013561,2]
[340495234,1729336240702,-151.0,0.00013561,2]
[340495235,1729336240711,-151.0,0.00013561,2]
[340495236,1729336240720,-151.0,0.00013561,2]
[340495237,1729336240730,-151.0,0.00013561,2]
[340495238,1729336240740,-151.0,0.00013561,2]
[340495239,1729336240750,-151.0,0.00013561,2]
[340495240,1729336240759,-151.0,0.00013561,2]
[340495241,1729336240768,-151.0,0.00013561,2]
[340495242,1729336240777,-151.0,0.00013561,2]
[340495243,1729336240786,-151.0,0.00013561,2]
[340495244,1729336240796,-151.0,0.00013561,2]
[340495245,1729336240805,-151.0,0.00013561,2]
[340495246,1729336241023,-151.0,0.00013561,2]
[340495247,1729336241033,-151.0,0.00013561,2]
[340495248,1729336241043,-151.0,0.00013561,2]
[340495249,1729336241052,-281.295825,0.00013561,2]
[340495250,1729336241062,-151.0,0.00013561,2]
[340495251,1729336241072,-151.0,0.00013561,2]
[340495252,1729336241081,-151.0,0.00013561,2]
[340495253,1729336241090,-224.12695,0.00013561,2]
[340495254,1729336241099,-187.793678,0.00013561,2]
[340495255,1729336241110,-187.793678,0.00013561,2]
[340495256,1729336241119,-187.793678,0.00013561,2]
[340495257,1729336241128,-187.793678,0.00013561,2]
[340495258,1729336241137,-234.73417,0.00013561,2]
[340495259,1729336241146,-234.73417,0.00013561,2]
[340495260,1729336241156,-234.73417,0.00013561,2]
[340495261,1729336241165,-187.793678,0.00013561,2]
[340495262,1729336241174,-234.73417,0.00013561,2]
[340495263,1729336241185,-187.793678,0.00013561,2]
[340495264,1729336241194,-187.793678,0.00013561,2]
[340495265,1729336241204,-187.793678,0.00013561,2]
[340495266,1729336241213,-234.73417,0.00013561,2]
[340495267,1729336241223,-234.73417,0.00013561,2]
[340495268,1729336241232,-234.73417,0.00013561,2]
[340495269,1729336241243,-234.73417,0.00013561,2]
[340495270,1729336241252,-345.9803196,0.00013562,2]
[340495271,1729336241261,-1051.3641353,0.00013575,2]
[340495272,1729336241272,-152.0,0.0001359,2]
[340495273,1729336241281,-150.0,0.000136,2]
[340495274,1729336241290,-300.0,0.000136,4]
[340495275,1729336241300,-150.0,0.000136,2]
[340495276,1729336241309,-150.112238,0.000136,2]
[340495277,1729336241318,-151.0,0.000136,2]
[340495278,1729336241327,-187.793678,0.000136,2]
[340495279,1729336241336,-234.73417,0.000136,2]
[340495280,1729336241346,-187.793678,0.000136,2]
[340495281,1729336241355,-151.0,0.00013627,2]
[340495282,1729336241364,-187.793678,0.00013627,2]
[340495283,1729336241531,-234.73417,0.00013627,2]
[340495284,1729336241543,-187.793686,0.00013627,2]
[340495285,1729336241553,-148871.435838,0.00013628,2]
[340495286,1729336241563,-22915.119349,0.00013628,2]
[340495287,1729336241576,-82307.994638,0.00013628,2]
[340495288,1729336241584,-52057.20180371,0.00013628,2]
[340495289,1729336241595,-6689.0,0.00013628,2]
[340495313,1729336243374,-234.73417,0.000136,2]
[340495315,1729336243385,-234.734168,0.00013627,2]
[340495317,1729336243397,-789.14256436,0.00013628,2]
[340495320,1729336243412,-14900.37355103,0.00013628,2]
[340495321,1729336243422,-52611.5569934,0.00013628,2]
[340495323,1729336243434,-52611.5569934,0.00013629,2]
[340495325,1729336243445,-21665.48233488,0.00013637,2]
[340495326,1729336243459,-20763.03431979,0.00013637,2]
[340495333,1729336246229,-6817.9,0.00013637,2]
[340495449,1729337438529,-357.7058386,0.00012388,2]
[340495452,1729337438539,-214.401895,0.00012533,2]
[340495454,1729337438550,-47.59121518,0.0001292,2]
[340495550,1729337446370,-419.52770081,0.0001292,2]
[340495623,1729338638856,-160.655122,0.00011366,2]
[340495624,1729338638866,-160.655122,0.00011451,2]
[340495625,1729338638875,-160.655122,0.00011536,2]
[340495626,1729338638885,-160.655122,0.0001162,2]
[340495627,1729338638895,-160.655122,0.00011705,2]
[340495628,1729338638904,-160.655122,0.00011789,2]
[340495629,1729338638913,-160.655122,0.00011874,2]
[340495630,1729338638925,-160.655122,0.00011959,2]
[340495631,1729338638934,-300.0,0.00012397,2]
[340495632,1729338638943,-300.0,0.00012397,2]
[340495633,1729338638952,-224.4290083,0.00012398,2]
[340495634,1729338638962,-1316.98448609,0.00012398,2]
[340495696,1729338640702,-30386.65197808,0.00012398,2]
[340495698,1729338640715,-414.7253715,0.000124,2]
[340495700,1729338640724,-414.7253715,0.000124,2]
[340495702,1729338640734,-414.7253715,0.000124,2]
[340495704,1729338640743,-153.0,0.00012504,2]
[340495707,1729338640754,-153.0,0.00012652,2]
[340495709,1729338640764,-414.7253715,0.00012678,2]
[340495711,1729338640774,-153.48200102,0.00012691,2]
[340495713,1729338640783,-2058.43071742,0.000129,2]
[340495715,1729338640793,-500.0,0.0001292,2]
[340495717,1729338640804,-153.0,0.00012952,2]
[340495719,1729338640814,-150.0,0.00013013,2]
[340495721,1729338640824,-527.0,0.00013013,2]
[340495723,1729338640833,-1157.0,0.00013013,2]
[340495725,1729338640843,-1806.0,0.00013013,2]
[340495727,1729338640856,-465.00006709,0.00013123,2]
[340495729,1729338640866,-957.233333,0.0001342,2]
[340495731,1729338640875,-2000.000001,0.000135,2]
[340495733,1729338640884,-452.5824006,0.00013507,2]
[340495735,1729338640896,-162.876,0.00013521,2]
[340495738,1729338640905,-152.0,0.0001359,2]
[340495740,1729338640916,-1150.38273213,0.00013598,2]
[340495742,1729338640927,-300.0,0.000136,4]
[340495744,1729338640938,-150.0,0.000136,2]
[340495746,1729338640949,-420.0,0.00013603,2]
[340495748,1729338640961,-310.94620502,0.00013636,2]
[340495750,1729338640970,-2516.21899789,0.00013636,2]
[340495752,1729338640980,-500.0,0.00013673,2]
[340495754,1729338640989,-19683.74780342,0.00013678,2]
[340495780,1729338643710,-37006.24131048,0.00013678,2]
[340495781,1729338643721,-8799.97568925,0.00013678,2]
[340495793,1729338758766,713.30067386,0.00027,60]
[340495818,1729339834854,-213.98095407,0.00012989,2]
[340495819,1729339834864,-500.0,0.00013088,2]
[340495820,1729339834876,-300.0,0.00013088,2]
[340495821,1729339834886,-300.0,0.00013088,2]
[340495822,1729339834897,-150.0,0.00013089,2]
[340495823,1729339834911,-527.0,0.00013089,2]
[340495824,1729339834921,-1806.0,0.00013089,2]
[340495825,1729339834931,-1157.0,0.00013089,2]
[340495826,1729339834941,-465.00000335,0.0001309,2]
[340495827,1729339834950,-213.98095406,0.00013195,2]
[340495828,1729339834960,-500.0,0.00013295,2]
[340495829,1729339834973,-8461.68982078,0.00013314,2]
[340495830,1729339834984,-500.0,0.00013425,2]
[340495831,1729339834998,-2939.33938585,0.00013432,2]
[340495832,1729339835010,-392.48402729,0.00013441,2]
[340495833,1729339835020,-392.48402726,0.00013444,2]
[340495834,1729339835031,-392.48402726,0.00013446,2]
[340495835,1729339835042,-392.48402726,0.00013449,2]
[340495836,1729339835051,-500.0,0.00013451,2]
[340495837,1729339835062,-392.48402726,0.00013451,2]
[340495838,1729339835072,-1136.31882528,0.00013461,2]
[340495839,1729339835082,-162.876,0.00013521,2]
[340495840,1729339835092,-15851.81823209,0.00013531,2]
[340495841,1729339835103,-17903.63014301,0.00013531,2]
[340495842,1729339835116,-109360.937978,0.00013531,2]
[340495843,1729339835126,-34691.46120857,0.00013531,2]
[340495906,1729339843155,-101463.15378643,0.00013531,2]
[340495907,1729339843164,-151.0,0.00013541,2]
[340495908,1729339843174,-151.0,0.00013541,2]
[340495909,1729339843185,-151.0,0.00013541,2]
[340495910,1729339843196,-151.0,0.00013541,2]
[340495911,1729339843207,-151.0,0.00013541,2]
[340495912,1729339843218,-168148.90148261,0.00013541,2]
[340495913,1729339843231,-6697.6,0.00013541,2]
[340495938,1729340836812,115.8219278,0.00024,31]
[340495939,1729340836840,884.1780722,0.00024,31]
[340496046,1729341038430,-511.6064451,0.0001229,2]
[340496047,1729341038440,-300.0,0.00012299,2]
[340496048,1729341038449,-11751.9496455,0.000123,2]
[340496049,1729341038459,-907.07207906,0.00013,2]
[340496050,1729341038470,-600.0,0.0001315,2]
[340496051,1729341038481,-1157.0,0.00013153,2]
[340496052,1729341038495,-970.50171066,0.00013153,2]
[340496079,1729341040038,-835.49828934,0.00013153,2]
[340496080,1729341040048,-600.0,0.00013287,2]
[340496081,1729341040058,-600.0,0.00013424,2]
[340496082,1729341040068,-3567.85790718,0.00013451,2]
[340496083,1729341040260,-1000.0,0.000135,2]
[340496084,1729341040270,-414.7253715,0.000135,2]
[340496085,1729341040279,-162.877,0.00013521,2]
[340496086,1729341040289,-245.7073937,0.00013551,2]
[340496087,1729341040298,-1243.33403803,0.00013551,2]
[340496088,1729341040310,-501.98208771,0.00013551,2]
[340496089,1729341040321,-7104.81406439,0.00013551,2]
[340496115,1729341043585,-9496.17983969,0.00013551,2]
[340496116,1729341043681,-0.28335808,0.00013551,2]
[340496123,1729341148687,1000.0,0.00025,31]
[340496124,1729341156503,116.8219278,0.00025,31]
[340496125,1729341156530,300.0,0.00025,31]
[340496126,1729341156555,583.1780722,0.00025,31]
[340496127,1729341159361,418.8219278,0.00025,31]
[340496128,1729341189272,1000.0,0.00027,60]
[340496130,1729341575130,150.25,0.0001,2]
[340496224,1729342109177,302.68953637,0.00027,60]
[340496467,1729342246241,-243.62,0.00010959,2]
[340496468,1729342246252,-465.00000017,0.00013058,2]
[340496469,1729342246263,-600.0,0.0001315,2]
[340496470,1729342246275,-300.0,0.00013158,2]
[340496471,1729342246286,-150.0,0.00013159,2]
[340496472,1729342246297,-527.0,0.00013159,2]
[340496473,1729342246307,-1806.0,0.00013159,2]
[340496474,1729342246316,-1157.0,0.00013159,2]
[340496475,1729342246326,-348.66115543,0.00013287,2]
[340496476,1729342246349,-251.33884457,0.00013287,2]
[340496477,1729342246360,-600.0,0.00013424,2]
[340496478,1729342246369,-3121.8756688,0.00013451,2]
[340496479,1729342246379,-153.0,0.000135,2]
[340496480,1729342246389,-153.0,0.000135,2]
[340496481,1729342246398,-150.0,0.000135,2]
[340496482,1729342246408,-153.0,0.000135,2]
[340496483,1729342246417,-153.0,0.000135,2]
[340496484,1729342246427,-153.0,0.000135,2]
[340496485,1729342246436,-151.0892592,0.000135,2]
[340496486,1729342246446,-162.877,0.00013541,2]
[340496487,1729342246456,-3715.852448,0.00013547,2]
[340496488,1729342246467,-3566.84677943,0.00013551,2]
[340496489,1729342673472,603.0,0.00027,60]
[340496537,1729343432519,-163.128197,0.00012227,2]
[340496539,1729343432528,-163.128197,0.0001244,2]
[340496541,1729343432538,-163.128197,0.00012652,2]
[340496543,1729343432548,-163.128197,0.00012865,2]
[340496545,1729343432557,-153.77540887,0.00013,2]
[340496548,1729343432568,-153.0,0.00013,2]
[340496550,1729343432579,-3751.07387852,0.000131,2]
[340496552,1729343432590,-153.0,0.000131,2]
[340496554,1729343432598,-875.15547679,0.0001315,2]
[340496556,1729343432609,-746.84875407,0.00013157,2]
[340496558,1729343432620,-300.0,0.00013157,2]
[340496560,1729343432630,-300.0,0.00013157,2]
[340496562,1729343432638,-6043.69222242,0.00013158,2]
[340496564,1729343432649,-2403.94438503,0.00013158,2]
[340496566,1729343432659,-150.0,0.00013159,2]
[340496568,1729343432670,-527.0,0.00013159,2]
[340496570,1729343432680,-1806.0,0.00013159,2]
[340496572,1729343432690,-1157.0,0.00013159,2]
[340496575,1729343432701,-8951.81507151,0.00013198,2]
[340496577,1729343432712,-6142.48572633,0.00013198,2]
[340496579,1729343432723,-181.09649247,0.00013198,2]
[340496581,1729343432734,-7551.68962699,0.00013199,2]
[340496780,1729343446503,-88.08700241,0.00013199,2]
[340496781,1729343446515,-306.0,0.000132,2]
[340496782,1729343446526,-153.0,0.000133,2]
[340496783,1729343446537,-153.0,0.000133,2]
[340496784,1729343446548,-156.05419699,0.00013441,2]
[340496785,1729343446721,-196.53690545,0.00013468,2]
[340496786,1729343446733,-150.112233,0.000135,2]
[340496787,1729343446744,-162.87776038,0.00013521,2]
[340496788,1729343446754,-1603.469573,0.00013547,2]
[340496789,1729343446764,-167.092768,0.00013547,2]
[340496790,1729343446774,-310.94620502,0.0001355,2]
[340496791,1729343446785,-1183.87540464,0.0001355,2]
[340496826,1729344585023,10000.0,0.00027,60]
[340496850,1729344638988,-465.00000001,0.00013025,2]
[340496851,1729344639002,-300.0,0.00013214,2]
[340496852,1729344639015,-300.0,0.00013214,2]
[340496853,1729344639029,-1806.0,0.00013215,2]
[340496854,1729344639041,-439.8423811,0.00013215,2]
[340496855,1729344639073,-717.1576189,0.00013215,2]
[340496856,1729344639086,-132.5645702,0.00013215,2]
[340496857,1729344639101,-17.4354298,0.00013215,2]
[340496858,1729344639113,-527.0,0.00013215,2]
[340496859,1729344639126,-7639.7766295,0.00013403,2]
[340496860,1729344639138,-3282.18964374,0.00013441,2]
[340496861,1729344639150,-1531.75631542,0.00013451,2]
[340496862,1729344639166,-461.35207307,0.00013451,2]
[340496863,1729344639180,-315.79718211,0.0001354,2]
[340496864,1729344639192,-151.0,0.00013541,2]
[340496865,1729344639205,-247.769281,0.00013541,2]
[340496866,1729344639218,-247.769281,0.00013541,2]
[340496867,1729344639231,-151.0,0.00013541,2]
[340496868,1729344639242,-151.0,0.00013541,2]
[340496869,1729344639253,-151.0,0.00013541,2]
[340496870,1729344639263,-230.276516,0.00013541,2]
[340496871,1729344639273,-504.362846,0.00013541,2]
[340496872,1729344639283,-504.362846,0.00013541,2]
[340496873,1729344639293,-504.362846,0.00013541,2]
[340496874,1729344639303,-330.64766202,0.00013541,2]
[340496877,1729344640725,-173.71518398,0.00013541,2]
[340496878,1729344640735,-151.0,0.00013541,2]
[340496879,1729344640746,-151.0,0.00013541,2]
[340496880,1729344640757,-151.0,0.00013541,2]
[340496881,1729344640767,-560.802259,0.00013541,2]
[340496882,1729344640777,-560.802259,0.00013541,2]
[340496883,1729344640787,-560.802259,0.00013541,2]
[340496884,1729344640797,-560.802259,0.00013541,2]
[340496885,1729344640806,-151.0,0.00013541,2]
[340496886,1729344640816,-151.0,0.00013541,2]
[340496887,1729344640825,-151.0,0.00013541,2]
[340496888,1729344640834,-151.0,0.00013541,2]
[340496889,1729344640843,-151.0,0.00013541,2]
[340496890,1729344640853,-151.0,0.00013541,2]
[340496891,1729344640865,-151.0,0.00013541,2]
[340496892,1729344640875,-151.0,0.00013541,2]
[340496893,1729344640892,-151.0,0.00013541,2]
[340496894,1729344640902,-173.231418,0.00013541,2]
[340496895,1729344640912,-247.211537,0.00013541,2]
[340496896,1729344640922,-151.0,0.00013541,2]
[340496897,1729344640934,-151.0,0.00013541,2]
[340496898,1729344640943,-151.0,0.00013541,2]
[340496899,1729344640952,-151.0,0.00013541,2]
[340496900,1729344640963,-16.64852943,0.00013541,2]
[340496907,1729344643909,-134.35147057,0.00013541,2]
[340496908,1729344643919,-248.855434,0.00013541,2]
[340496909,1729344643929,-265.56364,0.00013541,2]
[340496910,1729344643939,-151.0,0.00013541,2]
[340496911,1729344643949,-151.0,0.00013541,2]
[340496912,1729344643959,-151.0,0.00013541,2]
[340496913,1729344643968,-151.0,0.00013541,2]
[340496914,1729344643978,-2364.24175375,0.0001355,2]
[340496915,1729344643990,-707.00110941,0.0001355,2]
[340496916,1729344644002,-241.46198997,0.0001355,2]
[340496917,1729344644012,-562.6467458,0.0001355,2]
[340496918,1729344644024,-3913.26078995,0.0001355,2]
[340496919,1729344644034,-155.47310251,0.0001355,2]
[340496920,1729344644045,-1924.28129557,0.0001355,2]
[340496921,1729344644055,-14887.44547345,0.0001355,2]
[340496950,1729345831896,-178.57143,0.00012456,2]
[340496951,1729345831907,-178.57143,0.00013105,2]
[340496952,1729345831917,-1801.35714,0.00013203,2]
[340496984,1729345838236,-3226.52601105,0.00013203,2]
[340496994,1729345839888,-76.86489133,0.00013203,2]
[340496995,1729345839899,-1000.0,0.00013214,2]
[340496996,1729345839909,-504.0,0.00013214,2]
[340496997,1729345839919,-300.0,0.00013225,2]
[340496998,1729345839930,-300.0,0.00013225,2]
[340496999,1729345839942,-150.0,0.00013226,2]
[340497000,1729345839951,-527.0,0.00013226,2]
[340497001,1729345839962,-1156.0,0.00013226,2]
[340497002,1729345839972,-884.78014987,0.00013226,2]
[340497012,1729345843026,-921.21985013,0.00013226,2]
[340497013,1729345843039,-177.717547,0.00013412,2]
[340497014,1729345843049,-1000.0,0.00013432,2]
[340497015,1729345843060,-2000.0,0.0001344,2]
[340497016,1729345843071,-1267.56882621,0.00013462,2]
[340497018,1729345843082,-1002.77481929,0.000135,2]
[340497020,1729345843094,-150.0,0.000135,2]
[340497021,1729345843105,-366.3927087,0.000135,2]
[340497022,1729345843115,-153.0,0.000135,2]
[340497023,1729345843126,-160.97465998,0.00013511,2]
[340497024,1729345843136,-25211.89088189,0.00013511,2]
[340497025,1729345843145,-2237.95376788,0.00013511,2]
[340497026,1729345843155,-68096.2596867,0.00013511,2]
[340497027,1729345843166,-94522.6892149,0.00013511,2]
[340497028,1729345843177,-151.0,0.00013512,2]
[340497029,1729345843187,-151.0,0.00013512,2]
[340497030,1729345843198,-151.0,0.00013512,2]
[340497031,1729345843207,-151.0,0.00013512,2]
[340497032,1729345843218,-151.0,0.00013512,2]
[340497033,1729345843234,-151.0,0.00013512,2]
[340497034,1729345843244,-272385.038747,0.00013521,2]
[340497035,1729345843254,-66592.64825826,0.00013521,2]
[340497036,1729345843267,-2992.43341702,0.00013521,2]
[340497048,1729346299084,354.95964615,0.00027,60]
[340497049,1729346371725,2000.0,0.00027,60]
[340497051,1729346437952,2000.0,0.00027,60]
[340497052,1729346466908,2000.0,0.00027,60]
[340497053,1729346496465,1000.0,0.00027,60]
[340497054,1729346512844,1000.0,0.00027,60]
[340497055,1729346543386,313.0,0.00027,60]
[340497139,1729347038562,-465.0,0.00012993,2]
[340497141,1729347038571,-300.0,0.00013225,2]
[340497143,1729347038582,-150.0,0.00013226,2]
[340497145,1729347038592,-110.91644312,0.00013226,2]
[340497269,1729347040293,-1045.08355688,0.00013226,2]
[340497271,1729347040303,-662.82735462,0.00013226,2]
[340497418,1729347046162,-1143.17264538,0.00013226,2]
[340497419,1729347046171,-160.97465998,0.000135,2]
[340497420,1729347046181,-150.112233,0.000135,2]
[340497421,1729347046190,-150.112233,0.000135,2]
[340497422,1729347046199,-150.0,0.000135,2]
[340497423,1729347046208,-29999.99999999,0.000135,2]
[340497424,1729347046218,-184.128535,0.00013547,2]
[340497425,1729347046228,-1237.214352,0.00013547,2]
[340497426,1729347046239,-155.47310251,0.00013549,2]
[340497428,1729347046248,-1924.28129556,0.00013549,2]
[340497430,1729347046259,-28117.27813442,0.00013551,2]
[340497431,1729347046276,-6450.2896329,0.00013551,2]
[340497526,1729348232394,-3706.69427303,0.00013432,2]
[340497529,1729348232404,-1000.0,0.00013461,2]
[340497531,1729348232416,-150.0,0.000135,2]
[340497533,1729348232426,-300.0,0.0001353,2]
[340497535,1729348232436,-300.0,0.0001353,2]
[340497537,1729348232446,-7986.30572697,0.00013531,2]
[340497542,1729348232484,-604.25565042,0.00013531,2]
[340497558,1729348240326,-1156.0,0.00013408,2]
[340497559,1729348240337,-1806.0,0.00013408,2]
[340497560,1729348240348,-4015.38406356,0.00013531,2]
[340497561,1729348240357,-160.97465999,0.00013531,2]
[340497562,1729348240367,-1118.97688394,0.00013531,2]
[340497563,1729348240377,-5378.53499251,0.00013531,2]
[340497564,1729348240427,-401.28194322,0.00013531,2]
[340497567,1729348243443,-3584.18010991,0.00013531,2]
[340497568,1729348243456,-2070.85067046,0.00013531,2]
[340497636,1729349432649,-167.2948696,0.00012479,2]
[340497637,1729349432659,-465.0,0.00012961,2]
[340497638,1729349432671,-2289.79567011,0.00013238,2]
[340497657,1729349439999,-916.21424869,0.00013238,2]
[340497659,1729349440012,-796.5,0.00013238,2]
[340497661,1729349440026,-1271.9460579,0.00013238,2]
[340497663,1729349440036,-193.90461388,0.00013308,2]
[340497665,1729349440046,-300.0,0.00013364,2]
[340497667,1729349440057,-300.0,0.00013364,2]
[340497669,1729349440066,-4681.64232822,0.00013365,2]
[340497710,1729349446478,-3315.95818851,0.00013365,2]
[340497711,1729349446487,-200.0,0.0001339,2]
[340497712,1729349446497,-1806.0,0.00013392,2]
[340497713,1729349446507,-1156.0,0.00013392,2]
[340497714,1729349446516,-353.04181149,0.000134,2]
[340497715,1729349446528,-855.23577306,0.000134,2]
[340497716,1729349446537,-500.0,0.00013473,2]
[340497717,1729349446547,-500.3261136,0.00013473,2]
[340497718,1729349446557,-501.23920217,0.00013473,2]
[340497719,1729349446567,-500.16460033,0.00013473,2]
[340497720,1729349446577,-310.26493964,0.00013473,2]
[340497721,1729349446587,-500.0,0.00013473,2]
[340497722,1729349446596,-500.11836299,0.00013473,2]
[340497723,1729349446606,-500.0,0.00013473,2]
[340497724,1729349446615,-500.0,0.00013473,2]
[340497725,1729349446625,-510.72929659,0.00013473,2]
[340497726,1729349446634,-7158.69858869,0.0001348,2]
[340497727,1729349446644,-31785.59795832,0.0001348,2]
[340497728,1729349446653,-81204.77352551,0.0001348,2]
[340497802,1729350632797,-857.71,0.00010959,2]
[340497805,1729350632810,-187.5,0.00012504,2]
[340497807,1729350632825,-187.5,0.00013155,2]
[340497812,1729350632839,-4281.25563827,0.0001329,2]
[340497815,1729350632854,-300.0,0.00013354,2]
[340497818,1729350632868,-50066.4168116,0.00013355,2]
[340497820,1729350632881,-15892.79897916,0.00013365,2]
[340497822,1729350632893,-3579.34929435,0.00013365,2]
[340497825,1729350632906,-20666.53868237,0.00013365,2]
[340497827,1729350632922,-83525.16277336,0.00013365,2]
[340497830,1729350632937,-1087.44982605,0.0001339,2]
[340497832,1729350632950,-1805.0,0.00013392,2]